bitfinex-derivatives/quotes_SOLF0:USTF0_20251122
["timestamp","ask_amount","ask_price","bid_price","bid_amount"]
[1763796088785,0.05432207,128.26,128.23,119.41657822]
[1763796088985,0.05432207,128.26,128.24,3.08]
[1763796090289,0.05432207,128.26,128.24,16.5]
[1763796090491,0.05432207,128.26,128.24,19.58]
[1763796092188,0.05432207,128.26,128.25,3.08]
[1763796092786,0.05432207,128.26,128.24,16.5]
[1763796092989,0.05432207,128.26,128.24,19.58]
[1763796093985,0.05432207,128.26,128.24,3.08]
[1763796094190,0.05432207,128.26,128.24,19.56]
[1763796094392,0.05432207,128.26,128.25,3.08]
[1763796096491,10.0898,128.31,128.25,3.08]
[1763796096492,3.07,128.31,128.25,3.08]
[1763796096689,10.0986,128.33,128.26,3.25]
[1763796097482,3.08,128.31,128.23,7.0236]
[1763796097687,3.08,128.31,128.28,0.05155295]
[1763796098294,8.88914963,128.31,128.28,0.05155295]
[1763796098487,3.08,128.31,128.28,0.05155295]
[1763796098994,3.08,128.3,128.28,0.05155295]
[1763796099298,8.88879944,128.29,128.28,0.05155295]
[1763796099492,3.08,128.29,128.28,0.05155295]
[1763796099893,8.90032382,128.29,128.28,0.05155295]
[1763796100194,3.08,128.25,128.17,3.25]
[1763796100496,8.90032382,128.24,128.17,10.277]
[1763796100684,5.82032382,128.23,128.17,3.25]
[1763796100891,3.08,128.24,128.17,3.25]
[1763796101188,0.05879362,128.22,128.19,3.30687052]
[1763796101391,0.05879362,128.22,128.19,3.30655662]
[1763796102286,0.05879362,128.22,128.21,3.25]
[1763796102585,5.92201874,128.22,128.21,16.5]
[1763796102898,7.02199226,128.26,128.22,3.25]
[1763796103099,5.84795439,128.25,128.22,3.25]
[1763796103300,5.84795439,128.24,128.22,3.25]
[1763796103504,5.84795439,128.23,128.22,10.2743]
[1763796105193,7.02199226,128.25,128.24,10.2733]
[1763796105497,7.02199226,128.26,128.25,3.25]
[1763796105697,7.02199226,128.27,128.25,19.75]
[1763796106099,3.08,128.26,128.24,0.05788835]
[1763796106299,12.78887639,128.25,128.24,0.05788835]
[1763796106490,8.77903818,128.25,128.19,3.25]
[1763796106802,7.2446861,128.24,128.21,3.25]
[1763796106999,7.2446861,128.26,128.21,3.25]
[1763796107200,7.2446861,128.24,128.22,10.2742]
[1763796107700,7.29600505,128.24,128.22,10.33116576]
[1763796108895,7.29600505,128.24,128.22,3.30696576]
[1763796109098,10.3246861,128.23,128.22,0.05696576]
[1763796109300,3.08,128.23,128.22,0.05696576]
[1763796109502,3.08,128.22,128.19,16.5]
[1763796109707,10.34328615,128.22,128.19,16.5]
[1763796110099,5.97495076,128.21,128.19,16.5]
[1763796110299,5.97495076,128.2,128.19,16.5]
[1763796110899,5.97495076,128.2,128.19,19.75]
[1763796111104,7.26328615,128.24,128.21,7.0248]
[1763796111693,7.26328615,128.24,128.2,3.25]
[1763796112099,0.05606664,128.23,128.21,3.30666587]
[1763796112499,0.05606664,128.23,128.21,10.33146587]
[1763796114504,0.05606664,128.23,128.22,16.5]
[1763796115307,0.05606664,128.23,128.22,19.75]
[1763796115808,7.26328615,128.28,128.24,3.25]
[1763796116012,3.08,128.28,128.24,3.25]
[1763796116209,3.08,128.23,128.16,3.25]
[1763796116709,3.08,128.22,128.17,16.52]
[1763796116907,3.08,128.22,128.18,0.05235429]
[1763796117412,3.08,128.2,128.18,0.05235429]
[1763796119812,8.81187587,128.19,128.18,0.05235429]
[1763796120404,3.08,128.19,128.18,0.05235429]
[1763796120710,3.08,128.22,128.18,0.05235429]
[1763796120916,3.08,128.2,128.12,3.25]
[1763796121115,3.08,128.18,128.09,3.25]
[1763796121310,3.08,128.16,128.09,19.77]
[1763796121806,3.08,128.2,128.13,3.25]
[1763796122004,3.08,128.2,128.12,109.3517]
[1763796122005,3.1354433,128.18,128.15,0.04985714]
[1763796122213,3.08,128.17,128.15,0.04985714]
[1763796122410,3.08,128.16,128.15,0.04985714]
[1763796122807,3.08,128.16,128.09,16.52]
[1763796123008,3.08,128.16,128.1,3.25]
[1763796123613,3.08,128.2,128.12,3.25]
[1763796123917,3.08,128.18,128.09,129.1472]
[1763796124116,3.13989823,128.15,128.12,0.05645054]
[1763796125914,0.05989823,128.15,128.12,3.12645054]
[1763796127313,0.05989823,128.15,128.12,10.15615054]
[1763796127509,3.05989823,128.15,128.12,0.05645054]
[1763796128023,3.0,128.1,128.03,3.07]
[1763796128416,3.0,128.1,128.05,10.1035]
[1763796128814,3.0,128.1,128.05,3.07]
[1763796129122,122.31993269,128.15,128.06,3.12961615]
[1763796129123,0.05019697,128.09,128.06,3.12961615]
[1763796129313,0.05776836,128.09,128.06,3.12443483]
[1763796130017,0.05776836,128.09,128.06,10.15743483]
[1763796130218,0.05776836,128.09,128.07,3.07]
[1763796131327,0.05776836,128.09,128.07,10.1022]
[1763796132411,0.05776836,128.09,128.08,3.07]
[1763796132610,3.0,128.13,128.08,10.1016]
[1763796132809,3.0,128.17,128.08,3.07]
[1763796133017,3.0,128.16,128.08,3.07]
[1763796133527,0.05899506,128.13,128.11,0.05613806]
[1763796134209,3.05899506,128.13,128.11,0.05613806]
[1763796135617,0.05899506,128.13,128.11,3.12613806]
[1763796136717,0.05899506,128.13,128.11,10.15643806]
[1763796137722,0.05899506,128.13,128.11,16.59613806]
[1763796137915,3.05899506,128.13,128.11,0.05613806]
[1763796139228,0.05899506,128.13,128.11,0.05613806]
[1763796139430,3.05899506,128.13,128.11,0.05613806]
[1763796141122,3.0,128.12,128.11,0.05613806]
[1763796141321,3.0,128.11,128.02,3.07]
[1763796141525,3.0,128.11,128.03,16.52]
[1763796141929,3.0,128.07,128.03,16.52]
[1763796142823,0.05243955,128.06,128.04,0.05839068]
[1763796143323,0.05243955,128.06,128.04,3.12839068]
[1763796143723,0.05243955,128.06,128.05,3.07]
[1763796145628,3.0,128.11,128.07,3.07]
[1763796145833,3.0,128.12,128.08,3.07]
[1763796146533,3.0,128.12,128.07,19.59]
[1763796146723,0.05108827,128.11,128.08,0.05683473]
[1763796146926,3.05108827,128.11,128.08,0.05683473]
[1763796147128,0.05108827,128.11,128.08,10.15883473]
[1763796147531,0.05108827,128.11,128.09,3.07]
[1763796148536,0.05108827,128.11,128.1,3.07]
[1763796150932,0.05108827,128.11,128.08,3.12683473]
[1763796151235,0.05108827,128.11,128.1,3.07]
[1763796155734,3.0,128.16,128.12,3.22]
[1763796155931,5.92445232,128.15,128.12,3.22]
[1763796156131,3.0,128.16,128.12,3.22]
[1763796156327,5.92679592,128.15,128.12,3.22]
[1763796156539,0.05114244,128.15,128.12,3.27836853]
[1763796156739,0.05114244,128.15,128.13,16.5]
[1763796157841,3.12114244,128.15,128.12,0.05836853]
[1763796158042,3.12114244,128.15,128.12,16.55836853]
[1763796158233,3.12114244,128.15,128.12,19.84836853]
[1763796158630,0.05114244,128.15,128.13,3.29]
[1763796160241,5.9644702,128.19,128.14,112.6212]
[1763796160441,3.07,128.21,128.15,3.29]
[1763796160646,3.07,128.21,128.17,3.29]
[1763796160647,5.92914394,128.2,128.17,3.29]
[1763796160854,3.07,128.21,128.17,3.29]
[1763796161049,5.92914277,128.2,128.17,3.29]
[1763796161243,3.07,128.21,128.17,3.33972028]
[1763796161450,3.07,128.19,128.17,0.04972028]
[1763796161653,9.00495395,128.18,128.17,0.04972028]
[1763796162158,5.93495395,128.18,128.17,0.04972028]
[1763796162858,9.00495395,128.18,128.17,0.04972028]
[1763796164560,5.93495395,128.18,128.17,0.04972028]
[1763796164858,9.00495395,128.18,128.17,0.04972028]
[1763796166257,3.07,128.16,128.12,16.5]
[1763796166464,3.07,128.16,128.12,19.79]
[1763796167265,0.05219002,128.15,128.13,0.05447607]
[1763796167462,0.05219002,128.15,128.13,3.34447607]
[1763796168061,0.05219002,128.15,128.14,3.29]
[1763796176170,3.12219002,128.15,128.13,7.08367607]
[1763796176362,0.05219002,128.15,128.13,26.85367607]
[1763796176563,0.05219002,128.15,128.14,3.29]
[1763796180272,0.05219002,128.15,128.13,23.56367607]
[1763796180273,3.07,128.22,128.18,3.29]
[1763796180478,9.00289437,128.21,128.18,19.77]
[1763796180671,7.26328615,128.24,128.18,19.77]
[1763796180873,3.07,128.22,128.19,3.29]
[1763796181176,3.07,128.22,128.19,16.48]
[1763796181478,3.07,128.22,128.19,16.53239361]
[1763796181875,3.07,128.2,128.11,9.29]
[1763796182071,3.07,128.18,128.13,7.0293]
[1763796182266,3.07,128.18,128.13,10.3193]
[1763796182466,3.07,128.18,128.13,3.29]
[1763796182671,3.07,128.16,128.13,3.29]
[1763796182872,3.1205819,128.16,128.13,3.34701265]
[1763796183375,3.1205819,128.16,128.13,0.05701265]
[1763796184373,0.0505819,128.16,128.14,3.29]
[1763796185577,0.0505819,128.16,128.14,10.3187]
[1763796186772,116.53098416,128.22,128.16,3.2]
[1763796186773,3.09,128.21,128.16,3.2]
[1763796186972,9.02267605,128.2,128.17,3.2]
[1763796187166,3.09,128.19,128.16,19.68]
[1763796187771,3.09,128.19,128.16,16.48]
[1763796187976,3.09,128.19,128.16,0.05426447]
[1763796188678,3.09,128.19,128.16,3.25426447]
[1763796188872,3.09,128.22,128.16,3.25426447]
[1763796189071,3.09,128.2,128.16,3.25426447]
[1763796189381,3.09,128.21,128.17,3.2]
[1763796189576,5.93944495,128.2,128.17,3.2]
[1763796189772,3.09,128.21,128.17,3.2]
[1763796190081,5.93944456,128.2,128.17,3.2]
[1763796190281,5.94270336,128.19,128.17,10.227]
[1763796190483,3.09,128.22,128.19,3.2]
[1763796190677,5.94192177,128.21,128.19,3.2]
[1763796190876,3.09,128.22,128.19,3.25558558]
[1763796191075,5.94192054,128.21,128.19,3.25558558]
[1763796191378,3.09,128.22,128.19,3.25558558]
[1763796191578,5.94313053,128.21,128.19,3.25558558]
[1763796191779,3.09,128.22,128.19,3.25558558]
[1763796191982,5.89454445,128.21,128.19,3.25558558]
[1763796192174,3.09,128.22,128.19,3.25558558]
[1763796193081,10.34858416,128.25,128.19,3.25558558]
[1763796193278,14.98087728,128.24,128.19,3.25558558]
[1763796193587,11.89087728,128.23,128.19,3.25558558]
[1763796193774,3.09,128.24,128.19,3.25558558]
[1763796193974,11.89064468,128.23,128.2,10.2253]
[1763796194184,3.09,128.24,128.2,3.2]
[1763796194383,8.98456374,128.23,128.2,3.2]
[1763796194682,3.09,128.23,128.2,3.25786336]
[1763796194881,3.09,128.25,128.2,3.25786336]
[1763796195182,14.97838281,128.24,128.2,3.25786336]
[1763796195482,3.09,128.24,128.21,0.05504181]
[1763796196577,3.09,128.24,128.21,3.25504181]
[1763796197075,3.09,128.24,128.21,0.05504181]
[1763796197473,3.09,128.24,128.21,3.25504181]
[1763796200988,7.25858416,128.27,128.22,3.2]
[1763796200989,7.0224,128.26,128.22,3.2]
[1763796201185,5.89061937,128.25,128.22,3.2]
[1763796201380,10.34858416,128.29,128.22,3.25745709]
[1763796201585,14.96695083,128.28,128.22,3.25745709]
[1763796201789,3.09,128.29,128.25,3.2]
[1763796202093,3.09,128.27,128.26,0.05592461]
[1763796202280,8.96123755,128.27,128.26,0.05592461]
[1763796202484,3.09,128.26,128.2,3.21344477]
[1763796202684,3.09,128.24,128.21,16.46]
[1763796203076,3.09,128.24,128.21,19.66]
[1763796203479,3.14747489,128.24,128.21,19.71135055]
[1763796204890,0.05747489,128.24,128.22,3.2]
[1763796205488,3.14747489,128.24,128.21,16.51135055]
[1763796206293,3.14747489,128.24,128.21,19.71135055]
[1763796207494,3.14747489,128.24,128.21,26.73615055]
[1763796207696,3.14747489,128.24,128.21,16.51135055]
[1763796208189,3.14747489,128.24,128.21,19.71135055]
[1763796208395,3.14747489,128.24,128.21,16.51135055]
[1763796209095,3.14747489,128.24,128.21,19.71135055]
[1763796209593,10.17087489,128.24,128.21,16.51135055]
[1763796209804,3.09,128.22,128.21,0.05135055]
[1763796210295,8.95757456,128.22,128.21,0.05135055]
[1763796210690,5.86757456,128.23,128.21,3.25135055]
[1763796210890,0.05747489,128.24,128.21,3.25135055]
[1763796212295,3.14747489,128.24,128.21,3.25135055]
[1763796212493,3.14747489,128.24,128.21,0.05135055]
[1763796213498,3.09,128.22,128.21,0.05135055]
[1763796213900,8.95786094,128.22,128.21,0.05135055]
[1763796214500,3.09,128.21,128.12,109.3473]
[1763796214705,3.09,128.19,128.1,3.2]
[1763796214889,3.09,128.17,128.1,3.2]
[1763796215089,3.09,128.15,128.1,3.2]
[1763796215603,0.05777605,128.14,128.11,3.21270596]
[1763796216195,0.05777605,128.14,128.11,10.24300596]
[1763796216401,0.05777605,128.14,128.11,3.21270596]
[1763796217612,0.05777605,128.14,128.13,3.18]
[1763796217990,0.05777605,128.14,128.13,19.66]
[1763796218799,0.05777605,128.14,128.11,0.05270596]
[1763796219099,0.05777605,128.14,128.11,3.23270596]
[1763796219100,3.17777605,128.14,128.11,3.23270596]
[1763796219491,3.17777605,128.14,128.11,10.26300596]
[1763796219692,0.05777605,128.14,128.12,3.18]
[1763796220606,0.05777605,128.14,128.12,10.2097]
[1763796222302,0.05777605,128.14,128.13,3.18]
[1763796222501,0.05777605,128.14,128.13,19.66]
[1763796222698,0.05777605,128.14,128.13,16.48]
[1763796222999,0.05777605,128.14,128.13,19.66]
[1763796225604,3.12,128.19,128.15,3.18]
[1763796226410,0.05412171,128.18,128.16,0.05546512]
[1763796226614,3.17412171,128.18,128.16,0.05546512]
[1763796229704,0.05412171,128.18,128.16,3.23546512]
[1763796230208,3.17412171,128.18,128.16,0.05546512]
[1763796234022,10.20082171,128.18,128.16,0.05546512]
[1763796234316,3.12,128.17,128.13,16.46]
[1763796235211,3.12,128.17,128.14,3.2386863]
[1763796237611,3.12,128.17,128.14,0.0586863]
[1763796239618,3.12,128.17,128.14,3.2386863]
[1763796240620,3.12,128.17,128.14,0.0586863]
[1763796241022,3.12,128.16,128.14,0.0586863]
[1763796242724,10.1478,128.16,128.14,0.0586863]
[1763796242923,3.12,128.15,128.14,0.0586863]
[1763796244323,3.12,128.13,128.06,3.18]
[1763796244521,3.12,128.12,128.06,3.18]
[1763796245021,3.12,128.1,128.06,3.18]
[1763796245418,3.17610503,128.09,128.07,0.0565828]
[1763796245922,0.05610503,128.09,128.07,0.0565828]
[1763796247218,3.27610503,128.09,128.07,0.0565828]
[1763796252330,0.05610503,128.09,128.07,3.2965828]
[1763796254030,3.27610503,128.09,128.07,0.0565828]
[1763796255733,3.22,128.08,128.07,0.0565828]
[1763796256836,3.22,128.07,128.01,10.2756]
[1763796257137,3.22,128.06,128.02,3.24]
[1763796257728,3.22,128.04,128.03,0.05039786]
[1763796259030,3.22,128.03,127.97,7.0377]
[1763796259226,3.22,128.03,127.96,3.24]
[1763796259227,3.22,128.02,127.96,3.24]
[1763796259626,3.22,128.02,127.96,10.2786]
[1763796260028,0.05668166,128.0,127.98,0.0535376]
[1763796260430,0.05668166,128.0,127.98,3.2935376]
[1763796262532,0.05668166,128.0,127.98,10.3309376]
[1763796263123,0.05668166,128.0,127.98,0.0535376]
[1763796263836,0.05668166,128.0,127.98,3.2935376]
[1763796266135,0.05668166,128.0,127.98,10.3310376]
[1763796266340,3.27668166,128.0,127.98,0.0535376]
[1763796267139,0.05668166,128.0,127.98,3.2935376]
[1763796271339,3.27668166,128.0,127.98,0.0535376]
[1763796271645,3.27668166,128.0,127.92,19.72]
[1763796271646,3.22,127.98,127.92,19.72]
[1763796272648,3.27015232,127.96,127.94,0.0513307]
[1763796274848,3.22,127.94,127.88,3.24]
[1763796275152,3.22,127.91,127.86,3.24]
[1763796275343,3.22,127.91,127.87,3.24]
[1763796275948,0.06009472,127.9,127.88,0.05901955]
[1763796276133,0.06009472,127.9,127.88,3.11901955]
[1763796276643,3.26009472,127.9,127.88,0.05901955]
[1763796279646,0.06009472,127.9,127.88,3.03901955]
[1763796281150,3.33009472,127.9,127.88,0.05901955]
[1763796281452,3.27,127.88,127.81,2.98]
[1763796281657,3.27,127.85,127.79,16.48]
[1763796281857,3.27,127.85,127.79,26.5078]
[1763796282356,0.05485176,127.83,127.81,0.05316925]
[1763796282551,0.05485176,127.83,127.81,3.03316925]
[1763796283055,0.05485176,127.83,127.81,10.07986925]
[1763796283250,0.05485176,127.83,127.82,2.98]
[1763796283847,2.061269,127.9,127.84,2.98]
[1763796284052,5.331269,127.9,127.84,2.98]
[1763796284954,0.05106119,127.88,127.86,0.05909507]
[1763796285557,0.05106119,127.88,127.86,3.03909507]
[1763796286946,0.05106119,127.88,127.86,0.05909507]
[1763796287150,3.32106119,127.88,127.86,0.05909507]
[1763796289459,5.38233019,127.88,127.86,0.05909507]
[1763796289759,3.27,127.87,127.86,0.05909507]
[1763796289951,2.11233019,127.88,127.86,0.05909507]
[1763796289952,3.32106119,127.88,127.86,0.05909507]
[1763796294059,3.27,127.87,127.83,19.46]
[1763796294261,2.061269,127.85,127.81,2.98]
[1763796294566,3.27,127.84,127.81,2.98]
[1763796295069,3.32250714,127.84,127.81,3.03430473]
[1763796295366,3.32250714,127.84,127.81,0.05430473]
[1763796296867,3.32250714,127.84,127.81,3.03430473]
[1763796297068,3.32250714,127.84,127.81,0.05430473]
[1763796298966,3.27,127.82,127.81,0.05430473]
[1763796300363,3.27,127.82,127.75,10.03]
[1763796300566,3.27,127.8,127.76,2.98]
[1763796301470,0.05916354,127.79,127.77,3.03163507]
[1763796302160,0.05916354,127.79,127.77,0.05163507]
[1763796302473,0.05916354,127.79,127.77,3.03163507]
[1763796304974,3.32916354,127.79,127.77,0.05163507]
[1763796305267,3.27,127.77,127.71,19.48]
[1763796305465,3.27,127.77,127.73,3.18]
[1763796306066,0.05782862,127.76,127.73,3.18]
[1763796306272,0.05782862,127.76,127.74,0.05431911]
[1763796306471,0.05782862,127.76,127.74,3.23431911]
[1763796307689,3.14782862,127.76,127.74,0.05431911]
[1763796311675,3.09,127.75,127.74,0.05431911]
[1763796311870,3.09,127.75,127.69,26.7331]
[1763796312073,3.09,127.75,127.7,3.18]
[1763796313076,3.09,127.73,127.71,0.05185624]
[1763796313675,3.09,127.7,127.67,3.18]
[1763796314785,0.05668716,127.7,127.67,3.236818]
[1763796316269,3.14668716,127.7,127.67,3.236818]
[1763796316783,3.14668716,127.7,127.67,0.056818]
[1763796317578,0.05668716,127.7,127.67,3.236818]
[1763796319293,3.14668716,127.7,127.67,0.056818]
[1763796320584,10.1438,127.69,127.67,0.056818]
[1763796320782,3.09,127.69,127.67,0.056818]
[1763796321587,3.09,127.67,127.59,3.18]
[1763796321883,3.09,127.65,127.59,3.18]
[1763796322689,0.05514248,127.63,127.61,3.23029904]
[1763796323193,0.05514248,127.63,127.61,10.28799904]
[1763796323487,0.05514248,127.63,127.61,3.23029904]
[1763796323888,3.14514248,127.63,127.61,0.05029904]
[1763796325188,3.09,127.62,127.58,3.18]
[1763796326290,3.14514248,127.63,127.59,3.18]
[1763796326491,0.05349234,127.62,127.59,3.18]
[1763796329294,0.05349234,127.62,127.59,10.2389]
[1763796330591,0.05349234,127.62,127.6,10.2382]
[1763796330895,0.05349234,127.62,127.61,3.18]
[1763796331589,10.1439,127.69,127.63,3.18]
[1763796332093,3.09,127.68,127.63,3.18]
[1763796332685,3.1413183,127.67,127.64,0.06013207]
[1763796333289,0.0513183,127.67,127.65,3.18]
[1763796333882,3.1413183,127.67,127.64,3.24013207]
[1763796335994,3.1413183,127.67,127.64,0.06013207]
[1763796336981,3.28,127.65,127.62,16.52]
[1763796337699,3.28,127.64,127.62,16.52]
[1763796337893,3.28,127.64,127.6,3.03]
[1763796338092,3.33337339,127.63,127.59,3.03]
[1763796338294,3.33337339,127.63,127.56,19.55]
[1763796338494,3.33426134,127.61,127.57,3.03]
[1763796339696,3.33426134,127.61,127.58,3.03]
[1763796340198,0.05426134,127.61,127.59,3.03]
[1763796349205,0.05426134,127.61,127.6,3.03]
[1763796349703,0.05426134,127.61,127.59,3.03]
[1763796350289,3.33426134,127.61,127.59,3.03]
[1763796350691,0.05426134,127.61,127.59,3.03]
[1763796351696,3.33426134,127.61,127.56,26.6103]
[1763796352004,3.33426134,127.61,127.58,3.03]
[1763796353799,3.28,127.6,127.53,3.03]
[1763796354105,3.33709749,127.58,127.53,3.03]
[1763796354310,9.14809497,127.57,127.53,3.03]
[1763796354606,3.28,127.57,127.53,3.03]
[1763796354807,0.05709749,127.58,127.54,3.03]
[1763796355009,0.05709749,127.58,127.57,3.03]
[1763796355508,3.28,127.63,127.59,3.03]
[1763796355699,5.87406226,127.62,127.59,3.03]
[1763796355894,14.2495868,127.65,127.6,3.03]
[1763796356099,9.15406042,127.64,127.6,3.03]
[1763796356304,5.87406042,127.63,127.6,3.03]
[1763796356510,5.87406042,127.62,127.6,3.08879825]
[1763796356699,0.04932255,127.63,127.6,10.14719825]
[1763796356908,0.04932255,127.63,127.6,3.08879825]
[1763796357409,3.28,127.67,127.62,3.03]
[1763796357603,5.88034812,127.66,127.64,3.03]
[1763796357801,17.5265868,127.7,127.64,3.03]
[1763796358003,9.15920059,127.69,127.65,3.03]
[1763796358200,5.87920059,127.68,127.65,3.03]
[1763796358407,3.28,127.69,127.65,3.03]
[1763796358408,5.87920059,127.67,127.65,3.03]
[1763796358705,0.05993458,127.68,127.66,3.03]
[1763796359005,0.05993458,127.68,127.66,3.08953131]
[1763796360414,0.05993458,127.68,127.66,0.05953131]
[1763796360912,0.05993458,127.68,127.66,3.08953131]
[1763796362807,0.05993458,127.68,127.66,10.14453131]
[1763796363006,0.05993458,127.68,127.67,3.03]
[1763796363614,5.88780341,127.72,127.68,3.03]
[1763796363913,5.88780341,127.71,127.7,3.03]
[1763796364302,10.4733868,127.74,127.7,3.03]
[1763796364503,14.99174824,127.73,127.71,0.05159174]
[1763796364716,5.8878527,127.72,127.71,0.05159174]
[1763796365219,3.32953149,127.73,127.71,0.05159174]
[1763796365415,0.04953149,127.73,127.71,3.08159174]
[1763796366219,3.12953149,127.73,127.71,0.05159174]
[1763796366415,0.04953149,127.73,127.71,0.05159174]
[1763796366621,3.12953149,127.73,127.71,0.05159174]
[1763796368228,0.04953149,127.73,127.71,3.07159174]
[1763796370127,3.12953149,127.73,127.71,0.05159174]
[1763796370329,3.12953149,127.73,127.68,19.52]
[1763796371035,3.12953149,127.73,127.69,3.02]
[1763796371329,0.04953149,127.73,127.71,3.02]
[1763796378536,3.12953149,127.73,127.7,0.05899877]
[1763796381745,3.08,127.71,127.7,0.05899877]
[1763796382339,3.08,127.69,127.65,3.02]
[1763796382534,3.08,127.69,127.63,26.5765]
[1763796383447,0.05757916,127.67,127.65,0.05602337]
[1763796383633,3.13757916,127.67,127.65,0.05602337]
[1763796384236,3.08,127.66,127.65,0.05602337]
[1763796385536,3.08,127.65,127.6,3.02]
[1763796385939,3.08,127.65,127.61,3.02]
[1763796386549,0.05559244,127.64,127.61,3.02]
[1763796387151,3.13559244,127.64,127.61,3.02]
[1763796390048,3.13559244,127.64,127.6,3.02]
[1763796390254,3.13559244,127.64,127.58,7.0594]
[1763796390751,2.07642558,127.63,127.58,7.0594]
[1763796390947,3.08,127.62,127.58,10.0794]
[1763796391143,0.05144254,127.61,127.58,3.02]
[1763796392757,3.13144254,127.61,127.58,3.02]
[1763796394556,0.05144254,127.61,127.58,3.02]
[1763796397360,0.05144254,127.61,127.59,3.01]
[1763796399763,0.05144254,127.61,127.6,3.01]
[1763796401356,2.07642558,127.65,127.62,3.01]
[1763796401664,3.01,127.66,127.62,3.01]
[1763796402265,3.06841608,127.65,127.63,0.05215262]
[1763796402659,5.14484166,127.65,127.63,0.05215262]
[1763796402857,3.01,127.64,127.63,0.05215262]
[1763796403452,2.13484166,127.65,127.63,0.05215262]
[1763796403655,0.05841608,127.65,127.63,3.06215262]
[1763796407269,0.05841608,127.65,127.64,19.51]
[1763796409666,3.01,127.7,127.66,3.01]
[1763796410570,0.05015004,127.69,127.67,3.01]
[1763796410876,0.05015004,127.69,127.67,3.06174908]
[1763796411174,0.05015004,127.69,127.68,16.5]
[1763796411376,0.05015004,127.69,127.68,19.51]
[1763796413883,3.01,127.74,127.7,3.01]
[1763796414971,0.05476285,127.73,127.71,3.06729906]
[1763796416487,3.06476285,127.73,127.71,0.05729906]
[1763796416684,3.01,127.71,127.64,3.01]
[1763796416884,5.08642558,127.69,127.64,3.01]
[1763796417593,0.05597639,127.68,127.65,3.06391476]
[1763796419286,3.06597639,127.68,127.65,3.06391476]
[1763796419788,10.12017639,127.68,127.65,3.06391476]
[1763796419989,5.08642558,127.67,127.65,0.05391476]
[1763796420683,0.05597639,127.68,127.65,3.06391476]
[1763796421094,0.05597639,127.68,127.66,3.01]
[1763796421485,0.05597639,127.68,127.67,19.51]
[1763796422394,2.07642558,127.75,127.68,3.01]
[1763796422693,5.08642558,127.75,127.68,3.01]
[1763796422998,5.08642558,127.75,127.71,3.01]
[1763796423400,3.06307855,127.74,127.72,0.05982919]
[1763796425394,0.05307855,127.74,127.72,3.06982919]
[1763796425791,3.15307855,127.74,127.72,0.05982919]
[1763796427693,0.05307855,127.74,127.72,3.04982919]
[1763796428200,3.15307855,127.74,127.72,0.05982919]
[1763796429193,3.1,127.72,127.66,2.99]
[1763796429393,5.17642558,127.71,127.66,2.99]
[1763796429598,3.1,127.71,127.66,2.99]
[1763796430196,3.1,127.71,127.67,3.04794133]
[1763796430197,0.05830334,127.7,127.67,3.04794133]
[1763796431698,7.27142741,127.76,127.71,7.0523]
[1763796431901,3.1,127.74,127.71,16.5]
[1763796432796,3.15819087,127.74,127.71,16.55447691]
[1763796433194,3.15819087,127.74,127.71,0.05447691]
[1763796433394,3.1,127.72,127.66,2.99]
[1763796433599,8.96771791,127.72,127.66,2.99]
[1763796433796,3.1,127.71,127.66,2.99]
[1763796434298,3.15797395,127.7,127.67,0.05509468]
[1763796435607,3.15797395,127.7,127.67,3.04509468]
[1763796436807,3.1,127.69,127.67,0.05509468]
[1763796441606,3.15797395,127.7,127.67,3.04509468]
[1763796442007,3.15797395,127.7,127.67,0.05509468]
[1763796442808,0.05797395,127.7,127.67,3.04509468]
[1763796443502,0.05797395,127.7,127.67,10.09969468]
[1763796443709,0.05797395,127.7,127.67,3.04509468]
[1763796444617,0.05797395,127.7,127.69,2.99]
[1763796448217,0.05797395,127.7,127.68,7.0539]